Workbook

Sheet 面试及总成绩
A1: 庐阳区政府购买服务岗位面试成绩及总成绩
A2: 序号 | B2: 性别 | C2: 身份证号 | D2: 岗位名称 | E2: 笔试成绩 | F2: 抽签号 | G2: 面试成绩 | H2: 总成绩
A3: 1 | B3: 男 | C3: 340122******216019 | D3: 综合岗工作人员A-220901 | E3: 73 | F3: 01-01 | G3: 74.34 | H3: =(E3+G3)/2 -> 73.67
A4: 2 | B4: 男 | C4: 340881******125612 | D4: 综合岗工作人员A-220901 | E4: 70 | F4: 01-02 | G4: 74.43 | H4: =(E4+G4)/2 -> 72.22
A5: 3 | B5: 男 | C5: 342422******06429X | D5: 综合岗工作人员A-220901 | E5: 69 | F5: 01-03 | G5: 74.38 | H5: =(E5+G5)/2 -> 71.69
A6: 4 | B6: 男 | C6: 340121******23521X | D6: 综合岗工作人员A-220901 | E6: 70 | F6: 01-04 | G6: 75.10 | H6: =(E6+G6)/2 -> 72.55
A7: 5 | B7: 男 | C7: 340121******174011 | D7: 综合岗工作人员A-220901 | E7: 67 | F7: 01-05 | G7: 73.82 | H7: =(E7+G7)/2 -> 70.41
A8: 6 | B8: 男 | C8: 340123******09003X | D8: 综合岗工作人员A-220901 | E8: 69 | F8: 01-06 | G8: 75.39 | H8: =(E8+G8)/2 -> 72.20
A9: 7 | B9: 男 | C9: 340122******153916 | D9: 综合岗工作人员A-220901 | E9: 67 | F9: 01-07 | G9: 72.96 | H9: =(E9+G9)/2 -> 69.98
A10: 8 | B10: 男 | C10: 341225******020877 | D10: 综合岗工作人员A-220901 | E10: 70 | F10: 01-08 | G10: 73.49 | H10: =(E10+G10)/2 -> 71.75
A11: 9 | B11: 男 | C11: 342401******120019 | D11: 综合岗工作人员A-220901 | E11: 80 | F11: 01-09 | G11: 74.81 | H11: =(E11+G11)/2 -> 77.41
A12: 10 | B12: 男 | C12: 340121******025839 | D12: 综合岗工作人员A-220901 | E12: 85 | F12: 01-10 | G12: 73.95 | H12: =(E12+G12)/2 -> 79.48
A13: 11 | B13: 男 | C13: 340103******133038 | D13: 综合岗工作人员A-220901 | E13: 80 | F13: 01-11 | G13: 77.97 | H13: =(E13+G13)/2 -> 78.99
A14: 12 | B14: 男 | C14: 342626******040175 | D14: 综合岗工作人员A-220901 | E14: 74 | F14: 01-12 | G14: 75.26 | H14: =(E14+G14)/2 -> 74.63
A15: 13 | B15: 男 | C15: 340823******200413 | D15: 综合岗工作人员A-220901 | E15: 89 | F15: 01-13 | G15: 75.99 | H15: =(E15+G15)/2 -> 82.50
A16: 14 | B16: 男 | C16: 340101******070531 | D16: 综合岗工作人员A-220901 | E16: 69 | F16: 01-14 | G16: 75.09 | H16: =(E16+G16)/2 -> 72.05
A17: 15 | B17: 女 | C17: 340602******141220 | D17: 综合岗工作人员B-220902 | E17: 91 | F17: 02-01 | G17: 75.51 | H17: =(E17+G17)/2 -> 83.26
A18: 16 | B18: 女 | C18: 340121******015503 | D18: 综合岗工作人员B-220902 | E18: 83 | F18: 02-02 | G18: 77.86 | H18: =(E18+G18)/2 -> 80.43
A19: 17 | B19: 女 | C19: 320483******313428 | D19: 综合岗工作人员B-220902 | E19: 83 | F19: 02-03 | G19: 75.42 | H19: =(E19+G19)/2 -> 79.21
A20: 18 | B20: 女 | C20: 342224******071882 | D20: 综合岗工作人员B-220902 | E20: 70 | F20: 02-04 | G20: 73.82 | H20: =(E20+G20)/2 -> 71.91
A21: 19 | B21: 女 | C21: 342422******150146 | D21: 综合岗工作人员B-220902 | E21: 69 | F21: 02-05 | G21: 74.75 | H21: =(E21+G21)/2 -> 71.88
A22: 20 | B22: 女 | C22: 142732******06124X | D22: 综合岗工作人员B-220902 | E22: 69 | F22: 02-06 | G22: 74.43 | H22: =(E22+G22)/2 -> 71.72
A23: 21 | B23: 女 | C23: 340121******159128 | D23: 综合岗工作人员B-220902 | E23: 80 | F23: 02-07 | G23: 78.64 | H23: =(E23+G23)/2 -> 79.32
A24: 22 | B24: 女 | C24: 340703******050025 | D24: 综合岗工作人员B-220902 | E24: 72 | F24: 02-08 | G24: 74.61 | H24: =(E24+G24)/2 -> 73.31
A25: 23 | B25: 女 | C25: 142723******160828 | D25: 综合岗工作人员B-220902 | E25: 72 | F25: 02-09 | G25: 75.05 | H25: =(E25+G25)/2 -> 73.53
A26: 24 | B26: 女 | C26: 340111******125029 | D26: 综合岗工作人员B-220902 | E26: 69 | F26: 02-10 | G26: 75.63 | H26: =(E26+G26)/2 -> 72.32
A27: 25 | B27: 女 | C27: 341221******010243 | D27: 综合岗工作人员B-220902 | E27: 79 | F27: 02-11 | G27: 77.23 | H27: =(E27+G27)/2 -> 78.12
A28: 26 | B28: 女 | C28: 340103******113026 | D28: 综合岗工作人员B-220902 | E28: 79 | F28: 02-12 | G28: 77.58 | H28: =(E28+G28)/2 -> 78.29
A29: 27 | B29: 女 | C29: 342401******249269 | D29: 综合岗工作人员B-220902 | E29: 71 | F29: 02-13 | G29: 75.39 | H29: =(E29+G29)/2 -> 73.20
A30: 28 | B30: 女 | C30: 411628******230646 | D30: 综合岗工作人员B-220902 | E30: 70 | F30: 02-14 | G30: 76.00 | H30: =(E30+G30)/2 -> 73.00
A31: 29 | B31: 女 | C31: 340823******200044 | D31: 综合岗工作人员B-220902 | E31: 68 | F31: 02-15 | G31: 75.81 | H31: =(E31+G31)/2 -> 71.91
A32: 30 | B32: 女 | C32: 340111******161542 | D32: 综合岗工作人员B-220902 | E32: 68 | F32: 02-16 | G32: 74.91 | H32: =(E32+G32)/2 -> 71.46
A33: 31 | B33: 女 | C33: 340123******010060 | D33: 综合岗工作人员B-220902 | E33: 68 | F33: 02-17 | G33: 73.99 | H33: =(E33+G33)/2 -> 71.00
A34: 32 | B34: 女 | C34: 341226******152922 | D34: 信息录入员-220903 | E34: 82 | F34: 03-01 | G34: 73.99 | H34: =(E34+G34)/2 -> 78.00
A35: 33 | B35: 男 | C35: 340826******195613 | D35: 信息录入员-220903 | E35: 80 | F35: 03-02 | G35: 73.76 | H35: =(E35+G35)/2 -> 76.88
A36: 34 | B36: 女 | C36: 342625******170167 | D36: 信息录入员-220903 | E36: 69 | F36: 03-03 | G36: 76.27 | H36: =(E36+G36)/2 -> 72.64
A37: 35 | B37: 女 | C37: 340123******283367 | D37: 综合办公-220904 | E37: 66 | F37: 04-01 | G37: 74.22 | H37: =(E37+G37)/2 -> 70.11
A38: 36 | B38: 男 | C38: 341623******225611 | D38: 综合办公-220904 | E38: 68 | F38: 04-02 | G38: 76.89 | H38: =(E38+G38)/2 -> 72.45
A39: 37 | B39: 女 | C39: 342921******201020 | D39: 综合办公-220904 | E39: 68 | F39: 04-03 | G39: 75.09 | H39: =(E39+G39)/2 -> 71.55
A40: 38 | B40: 男 | C40: 342501******021052 | D40: 环境监察-220905 | E40: 89 | F40: 05-01 | G40: 75.36 | H40: =(E40+G40)/2 -> 82.18
A41: 39 | B41: 女 | C41: 430521******210961 | D41: 环境监察-220905 | E41: 63 | F41: 05-02 | G41: 74.12 | H41: =(E41+G41)/2 -> 68.56
A42: 40 | B42: 女 | C42: 340621******128722 | D42: 综合岗工作人员A-220906 | E42: 68 | F42: 06-01 | G42: 74.72 | H42: =(E42+G42)/2 -> 71.36
A43: 41 | B43: 女 | C43: 340123******057100 | D43: 综合岗工作人员A-220906 | E43: 68 | F43: 06-02 | G43: 74.17 | H43: =(E43+G43)/2 -> 71.09
A44: 42 | B44: 女 | C44: 340721******192729 | D44: 综合岗工作人员A-220906 | E44: 68 | F44: 06-03 | G44: 74.97 | H44: =(E44+G44)/2 -> 71.49
A45: 43 | B45: 女 | C45: 342425******234924 | D45: 综合岗工作人员A-220906 | E45: 89 | F45: 06-04 | G45: 76.47 | H45: =(E45+G45)/2 -> 82.74
A46: 44 | B46: 女 | C46: 341224******097420 | D46: 综合岗工作人员A-220906 | E46: 73 | F46: 06-05 | G46: 74.42 | H46: =(E46+G46)/2 -> 73.71
A47: 45 | B47: 女 | C47: 341621******10292X | D47: 综合岗工作人员A-220906 | E47: 69 | F47: 06-06 | G47: 74.10 | H47: =(E47+G47)/2 -> 71.55
A48: 46 | B48: 女 | C48: 360428******083563 | D48: 综合岗工作人员A-220906 | E48: 72 | F48: 06-07 | G48: 75.47 | H48: =(E48+G48)/2 -> 73.74
A49: 47 | B49: 女 | C49: 340102******191541 | D49: 综合岗工作人员A-220906 | E49: 70 | F49: 06-08 | G49: 75.25 | H49: =(E49+G49)/2 -> 72.63
A50: 48 | B50: 女 | C50: 340122******206025 | D50: 综合岗工作人员A-220906 | E50: 68 | F50: 06-09 | G50: 75.08 | H50: =(E50+G50)/2 -> 71.54
A51: 49 | B51: 男 | C51: 341281******207172 | D51: 综合岗工作人员A-220906 | E51: 74 | F51: 06-10 | G51: 75.70 | H51: =(E51+G51)/2 -> 74.85
A52: 50 | B52: 男 | C52: 340111******077510 | D52: 综合岗工作人员A-220906 | E52: 68 | F52: 06-11 | G52: 75.12 | H52: =(E52+G52)/2 -> 71.56
A53: 51 | B53: 女 | C53: 340103******115526 | D53: 综合岗工作人员B-220902 | E53: 68 | F53: 缺考 | H53: =(E53+G53)/2 -> 34.00
A54: 52 | B54: 男 | C54: 340123******095274 | D54: 综合岗工作人员A-220901 | E54: 67 | F54: 缺考 | H54: =(E54+G54)/2 -> 33.50
A55: 53 | B55: 女 | C55: 340122******01248X | D55: 环境监察-220905 | E55: 67 | F55: 缺考 | H55: =(E55+G55)/2 -> 33.50
